[Event "*** Titled Tuesday 3|2 Blitz (Late)"]
[Site "Chess.com"]
[Date "2017.01.03"]
[Round "1"]
[White "Cruel_Yaro"]
[Black "josiwales"]
[Result "1-0"]
[WhiteElo "2583"]
[BlackElo "2254"]
[TimeControl "180+2"]
[EndTime "17:03:08 PST"]
[Termination "Cruel_Yaro won by resignation"]

1. c4 {[%clk 0:03:01.3]} 1... c6 {[%clk 0:02:59.8]} 2. e4 {[%clk 0:03:01.6]}
2... d5 {[%clk 0:02:57.4]} 3. cxd5 {[%clk 0:03:00.7]} 3... cxd5 {[%clk
0:02:59.3]} 4. exd5 {[%clk 0:03:01.9]} 4... Qxd5 {[%clk 0:02:59.8]} 5. Nc3
{[%clk 0:03:01.7]} 5... Qd8 {[%clk 0:02:58.3]} 6. d4 {[%clk 0:03:01.6]} 6... Nf6
{[%clk 0:02:57.1]} 7. Nf3 {[%clk 0:03:02.5]} 7... e6 {[%clk 0:02:58]} 8. Bd3
{[%clk 0:03:03.1]} 8... Bb4 {[%clk 0:02:58.7]} 9. O-O {[%clk 0:03:03.6]} 9...
O-O {[%clk 0:02:59.7]} 10. Bg5 {[%clk 0:03:04.2]} 10... Nc6 {[%clk 0:03:00.2]}
11. Re1 {[%clk 0:02:53.8]} 11... h6 {[%clk 0:02:59.8]} 12. Bh4 {[%clk
0:02:54.1]} 12... Be7 {[%clk 0:02:46.4]} 13. Rc1 {[%clk 0:02:52.2]} 13... Bd7
{[%clk 0:02:36.4]} 14. Bb1 {[%clk 0:02:52]} 14... a6 {[%clk 0:02:34.2]} 15. a3
{[%clk 0:02:52.1]} 15... Qc7 {[%clk 0:02:35.2]} 16. Qd3 {[%clk 0:02:50.2]} 16...
g6 {[%clk 0:02:29]} 17. d5 {[%clk 0:02:50.6]} 17... Nxd5 {[%clk 0:02:00.8]} 18.
Nxd5 {[%clk 0:02:49.7]} 18... exd5 {[%clk 0:02:01.4]} 19. Bxe7 {[%clk
0:02:50.2]} 19... Bf5 {[%clk 0:02:02.4]} 20. Qd2 {[%clk 0:02:43.8]} 20... Rfe8
{[%clk 0:01:52.8]} 21. Bf6 {[%clk 0:02:41.2]} 21... Bxb1 {[%clk 0:01:52]} 22.
Qxh6 {[%clk 0:02:39.6]} 1-0

[Event "*** Titled Tuesday 3|2 Blitz (Late)"]
[Site "Chess.com"]
[Date "2017.01.03"]
[Round "1"]
[White "AungTZ"]
[Black "Tonychess32"]
[Result "1-0"]
[WhiteElo "2132"]
[BlackElo "2390"]
[TimeControl "180+2"]
[EndTime "17:04:04 PST"]
[Termination "AungTZ won by resignation"]

1. e4 {[%clk 0:03:01.9]} 1... e6 {[%clk 0:02:58.7]} 2. d4 {[%clk 0:03:02.4]}
2... d5 {[%clk 0:03:00.1]} 3. Nc3 {[%clk 0:03:03.3]} 3... dxe4 {[%clk
0:03:01.2]} 4. Nxe4 {[%clk 0:03:04.1]} 4... Nd7 {[%clk 0:03:03.1]} 5. Nf3 {[%clk
0:03:04.5]} 5... Ngf6 {[%clk 0:03:04]} 6. Bg5 {[%clk 0:03:05.6]} 6... Be7 {[%clk
0:02:59.5]} 7. Nxf6+ {[%clk 0:03:06.5]} 7... Nxf6 {[%clk 0:03:01.4]} 8. Bd3
{[%clk 0:03:06.6]} 8... O-O {[%clk 0:03:00.2]} 9. Qe2 {[%clk 0:03:06.7]} 9...
Rb8 {[%clk 0:02:59.7]} 10. O-O-O {[%clk 0:03:06.8]} 10... b6 {[%clk 0:03:00.4]}
11. Kb1 {[%clk 0:03:05.7]} 11... Bb7 {[%clk 0:03:01.4]} 12. h4 {[%clk
0:03:03.1]} 12... Nd5 {[%clk 0:02:59.6]} 13. c4 {[%clk 0:02:51]} 13... Nb4
{[%clk 0:02:54.7]} 14. Bxh7+ {[%clk 0:02:51]} 14... Kxh7 {[%clk 0:02:52.8]} 15.
Bxe7 {[%clk 0:02:51.9]} 15... Bd5 {[%clk 0:02:43.4]} 16. Bxd8 {[%clk 0:02:46.7]}
16... Bxf3 {[%clk 0:02:45.3]} 17. Qxf3 {[%clk 0:02:44.2]} 17... Rbxd8 {[%clk
0:02:44]} 18. a3 {[%clk 0:02:43.5]} 18... Na6 {[%clk 0:02:42.5]} 19. h5 {[%clk
0:02:26.8]} 19... c5 {[%clk 0:02:40.8]} 20. d5 {[%clk 0:02:24.5]} 20... exd5
{[%clk 0:02:39.1]} 21. Rxd5 {[%clk 0:02:25.2]} 21... Rde8 {[%clk 0:02:39.7]} 22.
Rg5 {[%clk 0:02:23.7]} 22... Re6 {[%clk 0:02:34.4]} 23. Qg4 {[%clk 0:02:22]}
23... Rg8 {[%clk 0:02:35.2]} 24. h6 {[%clk 0:02:23]} 24... g6 {[%clk 0:02:33.4]}
25. Qf4 {[%clk 0:02:23.2]} 25... f6 {[%clk 0:02:27.9]} 26. Rd5 {[%clk
0:02:21.4]} 26... Rge8 {[%clk 0:02:24.5]} 27. Rd7+ {[%clk 0:02:21.4]} 27... Kh8
{[%clk 0:02:24.5]} 28. Ka2 {[%clk 0:02:20.1]} 28... Nb8 {[%clk 0:02:21.7]} 29.
Rf7 {[%clk 0:02:14.5]} 29... Nc6 {[%clk 0:02:16.8]} 30. Rxf6 {[%clk 0:02:09.2]}
30... Re4 {[%clk 0:02:11.2]} 31. Rf8+ {[%clk 0:02:09.1]} 1-0

[Event "*** Titled Tuesday 3|2 Blitz (Late)"]
[Site "Chess.com"]
[Date "2017.01.03"]
[Round "1"]
[White "FastChance"]
[Black "Andrejkin"]
[Result "1-0"]
[WhiteElo "2490"]
[BlackElo "2210"]
[TimeControl "180+2"]
[EndTime "17:04:29 PST"]
[Termination "FastChance won by resignation"]

1. e4 {[%clk 0:03:01.2]} 1... c5 {[%clk 0:03:00.7]} 2. Nc3 {[%clk 0:03:01]} 2...
Nc6 {[%clk 0:03:00.8]} 3. Bb5 {[%clk 0:03:01.7]} 3... Nd4 {[%clk 0:03:01.7]} 4.
Nf3 {[%clk 0:03:02.6]} 4... Nxb5 {[%clk 0:03:02]} 5. Nxb5 {[%clk 0:03:04]} 5...
a6 {[%clk 0:03:03.3]} 6. Nc3 {[%clk 0:03:05.2]} 6... g6 {[%clk 0:03:04.5]} 7. d4
{[%clk 0:03:06.9]} 7... cxd4 {[%clk 0:03:04.3]} 8. Qxd4 {[%clk 0:03:08.2]} 8...
Nf6 {[%clk 0:03:05.3]} 9. e5 {[%clk 0:03:09.6]} 9... Ng8 {[%clk 0:03:04.9]} 10.
e6 {[%clk 0:03:08.6]} 10... Nf6 {[%clk 0:03:05.8]} 11. exf7+ {[%clk 0:03:08.8]}
11... Kxf7 {[%clk 0:03:07.3]} 12. Ng5+ {[%clk 0:03:07.1]} 12... Kg8 {[%clk
0:03:07.7]} 13. Bd2 {[%clk 0:02:59.8]} 13... Bg7 {[%clk 0:03:04.8]} 14. Ne6
{[%clk 0:02:56.6]} 14... Ne8 {[%clk 0:02:30.6]} 15. Qxg7+ {[%clk 0:02:10.9]}
15... Nxg7 {[%clk 0:02:30.7]} 16. Nxd8 {[%clk 0:02:12.4]} 16... Kf8 {[%clk
0:02:25.7]} 17. Bh6 {[%clk 0:02:06.3]} 17... Rg8 {[%clk 0:02:26.6]} 18. Nd5
{[%clk 0:02:06.5]} 18... Rb8 {[%clk 0:02:18.3]} 19. Nb6 {[%clk 0:01:54.9]} 19...
Ke8 {[%clk 0:02:16.9]} 20. Bxg7 {[%clk 0:01:53.9]} 20... Rxg7 {[%clk 0:02:15.4]}
21. Nxc8 {[%clk 0:01:55.3]} 21... Rxc8 {[%clk 0:02:12.9]} 22. Nxb7 {[%clk
0:01:56.5]} 22... Rxc2 {[%clk 0:02:14]} 23. Rb1 {[%clk 0:01:51.4]} 23... d6
{[%clk 0:02:09.9]} 24. O-O {[%clk 0:01:48.6]} 24... Kd7 {[%clk 0:02:09.1]} 25.
Na5 {[%clk 0:01:49.6]} 25... Rf7 {[%clk 0:02:08.1]} 26. Nb3 {[%clk 0:01:47.5]}
26... Rc4 {[%clk 0:02:06]} 27. Rbc1 {[%clk 0:01:45.4]} 27... Ra4 {[%clk
0:02:06.7]} 28. a3 {[%clk 0:01:46.3]} 28... Rf5 {[%clk 0:02:04.9]} 29. Rfd1
{[%clk 0:01:45.7]} 29... e5 {[%clk 0:02:04.3]} 30. Nc5+ {[%clk 0:01:45]} 1-0

[Event "*** Titled Tuesday 3|2 Blitz (Late)"]
[Site "Chess.com"]
[Date "2017.01.03"]
[Round "1"]
[White "BCNUM8"]
[Black "yurisolo"]
[Result "1/2-1/2"]
[WhiteElo "2147"]
[BlackElo "2438"]
[TimeControl "180+2"]
[EndTime "17:05:12 PST"]
[Termination "Game drawn by agreement"]

1. d4 {[%clk 0:03:00.4]} 1... d5 {[%clk 0:02:59.8]} 2. Bg5 {[%clk 0:03:00.7]}
2... h6 {[%clk 0:02:58.7]} 3. Bh4 {[%clk 0:03:01.9]} 3... c6 {[%clk 0:02:51.6]}
4. Nf3 {[%clk 0:03:02.2]} 4... Qb6 {[%clk 0:02:51.1]} 5. Qc1 {[%clk 0:02:59.3]}
5... Bf5 {[%clk 0:02:50.8]} 6. e3 {[%clk 0:02:58.7]} 6... Nd7 {[%clk 0:02:51.7]}
7. Bd3 {[%clk 0:02:49.2]} 7... e6 {[%clk 0:02:52.3]} 8. Bxf5 {[%clk 0:02:49.1]}
8... exf5 {[%clk 0:02:54.2]} 9. O-O {[%clk 0:02:50.7]} 9... Ngf6 {[%clk
0:02:52.2]} 10. c4 {[%clk 0:02:50.6]} 10... Be7 {[%clk 0:02:41.5]} 11. Nc3
{[%clk 0:02:50.2]} 11... O-O {[%clk 0:02:35.7]} 12. cxd5 {[%clk 0:02:51.1]}
12... cxd5 {[%clk 0:02:34.9]} 13. Ne5 {[%clk 0:02:52.6]} 13... Qe6 {[%clk
0:02:23.9]} 14. Nxd7 {[%clk 0:02:48.6]} 14... Qxd7 {[%clk 0:02:23.7]} 15. Qc2
{[%clk 0:02:48.3]} 15... Rfc8 {[%clk 0:02:17.9]} 16. Qb3 {[%clk 0:02:45.8]}
16... Rd8 {[%clk 0:02:00.4]} 17. Bxf6 {[%clk 0:02:42.5]} 17... Bxf6 {[%clk
0:02:00.9]} 18. g3 {[%clk 0:02:42.4]} 18... Rac8 {[%clk 0:01:55.6]} 19. Rac1
{[%clk 0:02:41.9]} 19... Be7 {[%clk 0:01:52.9]} 20. Nxd5 {[%clk 0:02:27.4]}
20... h5 {[%clk 0:01:32.2]} 21. Nxe7+ {[%clk 0:02:19.4]} 21... Qxe7 {[%clk
0:01:34.1]} 22. Qd3 {[%clk 0:02:10.1]} 22... g6 {[%clk 0:01:33.8]} 23. h4 {[%clk
0:02:11.5]} 23... Qb4 {[%clk 0:01:31.8]} 24. b3 {[%clk 0:02:12.1]} 24... Qa3
{[%clk 0:01:23.7]} 25. Rc2 {[%clk 0:02:12.4]} 25... a6 {[%clk 0:01:19.5]} 26.
Rfc1 {[%clk 0:02:12]} 26... Qxc1+ {[%clk 0:01:19.3]} 27. Rxc1 {[%clk 0:02:12.5]}
27... Rxc1+ {[%clk 0:01:21.2]} 28. Kg2 {[%clk 0:02:14.4]} 28... Rc7 {[%clk
0:01:20.5]} 29. a4 {[%clk 0:02:10.5]} 29... Kg7 {[%clk 0:01:20.4]} 30. b4 {[%clk
0:02:09.1]} 30... Rd5 {[%clk 0:01:16.5]} 31. Qb3 {[%clk 0:02:07.2]} 31... Rcd7
{[%clk 0:01:14.4]} 1/2-1/2

[Event "*** Titled Tuesday 3|2 Blitz (Late)"]
[Site "Chess.com"]
[Date "2017.01.03"]
[Round "1"]
[White "wonderfultime"]
[Black "MateusViageiro"]
[Result "0-1"]
[WhiteElo "2658"]
[BlackElo "2314"]
[TimeControl "180+2"]
[EndTime "17:06:21 PST"]
[Termination "MateusViageiro won by resignation"]

1. d4 {[%clk 0:02:55]} 1... Nf6 {[%clk 0:03:00.3]} 2. c4 {[%clk 0:02:55.1]} 2...
e6 {[%clk 0:03:01.8]} 3. Nc3 {[%clk 0:02:55]} 3... Bb4 {[%clk 0:03:02.9]} 4. e3
{[%clk 0:02:56.3]} 4... O-O {[%clk 0:03:03.2]} 5. Ne2 {[%clk 0:02:57.2]} 5... b6
{[%clk 0:03:04.4]} 6. a3 {[%clk 0:02:57.2]} 6... Bxc3+ {[%clk 0:03:03.3]} 7.
Nxc3 {[%clk 0:02:59.1]} 7... d5 {[%clk 0:03:04.1]} 8. Be2 {[%clk 0:02:55.8]}
8... Bb7 {[%clk 0:03:04.1]} 9. O-O {[%clk 0:02:57]} 9... Nbd7 {[%clk 0:03:00.1]}
10. b4 {[%clk 0:02:55.8]} 10... c5 {[%clk 0:02:59.7]} 11. Bb2 {[%clk 0:02:52.5]}
11... cxd4 {[%clk 0:02:59.7]} 12. Qxd4 {[%clk 0:02:50.2]} 12... dxc4 {[%clk
0:02:59.6]} 13. Bxc4 {[%clk 0:02:50.1]} 13... Qc7 {[%clk 0:02:51.5]} 14. Rac1
{[%clk 0:02:30.7]} 14... Rfd8 {[%clk 0:02:49.1]} 15. Be2 {[%clk 0:02:15.2]}
15... Ne5 {[%clk 0:02:43.2]} 16. Qf4 {[%clk 0:02:13.3]} 16... Qb8 {[%clk
0:02:34.5]} 17. Nb5 {[%clk 0:02:11.4]} 17... Ng6 {[%clk 0:02:32.2]} 18. Nc7
{[%clk 0:02:06.8]} 18... Nxf4 {[%clk 0:02:31]} 19. exf4 {[%clk 0:01:39]} 19...
Rd2 {[%clk 0:02:31.3]} 20. Bxf6 {[%clk 0:01:28.1]} 20... gxf6 {[%clk 0:02:31.2]}
21. Bh5 {[%clk 0:01:26.3]} 21... Qd8 {[%clk 0:02:25.3]} 22. Nxa8 {[%clk
0:01:26.8]} 22... Qxa8 {[%clk 0:02:25.8]} 23. Rc7 {[%clk 0:01:22.7]} 23... Bxg2
{[%clk 0:02:24.5]} 24. Rfc1 {[%clk 0:01:22.8]} 24... Bb7 {[%clk 0:01:45.6]} 25.
Bxf7+ {[%clk 0:01:11.1]} 25... Kh8 {[%clk 0:01:42.3]} 26. Bxe6 {[%clk
0:01:12.4]} 26... Qe8 {[%clk 0:01:35.3]} 27. f5 {[%clk 0:01:01.6]} 27... Qh5
{[%clk 0:01:21.7]} 28. R7c3 {[%clk 0:00:48.7]} 28... Rd1+ {[%clk 0:01:19]} 0-1

[Event "*** Titled Tuesday 3|2 Blitz (Late)"]
[Site "Chess.com"]
[Date "2017.01.03"]
[Round "1"]
[White "MbMaster"]
[Black "1random"]
[Result "1-0"]
[WhiteElo "2374"]
[BlackElo "2032"]
[TimeControl "180+2"]
[EndTime "17:06:26 PST"]
[Termination "MbMaster won by resignation"]

1. d4 {[%clk 0:03:01.5]} 1... Nf6 {[%clk 0:02:55.2]} 2. c4 {[%clk 0:03:02.2]}
2... e6 {[%clk 0:02:56.1]} 3. Nf3 {[%clk 0:03:02]} 3... b6 {[%clk 0:02:55.3]} 4.
g3 {[%clk 0:03:00.8]} 4... Ba6 {[%clk 0:02:56]} 5. Qa4 {[%clk 0:02:59.8]} 5...
c5 {[%clk 0:02:53.1]} 6. dxc5 {[%clk 0:03:01.3]} 6... Bxc5 {[%clk 0:02:49.2]} 7.
Bg2 {[%clk 0:03:01.4]} 7... Bb7 {[%clk 0:02:49.8]} 8. O-O {[%clk 0:03:01.1]}
8... O-O {[%clk 0:02:50.7]} 9. Nc3 {[%clk 0:03:01.7]} 9... Nc6 {[%clk
0:02:50.4]} 10. Rd1 {[%clk 0:02:51]} 10... Qc8 {[%clk 0:02:21.6]} 11. a3 {[%clk
0:02:41.5]} 11... Rd8 {[%clk 0:02:06.2]} 12. b4 {[%clk 0:02:41.8]} 12... Bf8
{[%clk 0:02:01.7]} 13. Bb2 {[%clk 0:02:41.9]} 13... Ng4 {[%clk 0:02:01.7]} 14.
Nb5 {[%clk 0:02:39.1]} 14... d5 {[%clk 0:01:57.7]} 15. h3 {[%clk 0:02:34.1]}
15... Nh6 {[%clk 0:01:40.8]} 16. cxd5 {[%clk 0:02:34.5]} 16... exd5 {[%clk
0:01:42.7]} 17. Rac1 {[%clk 0:02:32.2]} 17... Nf5 {[%clk 0:01:29.3]} 18. Nbd4
{[%clk 0:02:30.9]} 18... Nfxd4 {[%clk 0:01:23.6]} 19. Nxd4 {[%clk 0:02:31.7]}
19... b5 {[%clk 0:01:08.8]} 20. Qxb5 {[%clk 0:02:24.4]} 20... Nxd4 {[%clk
0:01:09.4]} 21. Bxd4 {[%clk 0:02:25]} 21... Qd7 {[%clk 0:01:08.5]} 22. Qxd7
{[%clk 0:02:24.6]} 22... Rxd7 {[%clk 0:01:10.4]} 23. Bc5 {[%clk 0:02:24.4]}
23... a5 {[%clk 0:00:37]} 24. b5 {[%clk 0:02:23.5]} 24... a4 {[%clk 0:00:36.3]}
25. e4 {[%clk 0:02:14.4]} 25... d4 {[%clk 0:00:33.1]} 26. e5 {[%clk 0:02:10.5]}
26... Bxg2 {[%clk 0:00:32.9]} 27. Kxg2 {[%clk 0:02:11.1]} 27... Rb8 {[%clk
0:00:32.2]} 28. b6 {[%clk 0:02:07.6]} 28... Rd5 {[%clk 0:00:28.1]} 29. Bxd4
{[%clk 0:01:47.7]} 29... Bxa3 {[%clk 0:00:28.7]} 30. Rc4 {[%clk 0:01:42.6]}
30... Bb2 {[%clk 0:00:28.3]} 31. Rxa4 {[%clk 0:01:37.9]} 31... Bxd4 {[%clk
0:00:29.1]} 32. Raxd4 {[%clk 0:01:37.2]} 32... Rxe5 {[%clk 0:00:30]} 1-0

[Event "*** Titled Tuesday 3|2 Blitz (Late)"]
[Site "Chess.com"]
[Date "2017.01.03"]
[Round "1"]
[White "Kacparov"]
[Black "Rating-Schmating"]
[Result "1-0"]
[WhiteElo "2602"]
[BlackElo "2267"]
[TimeControl "180+2"]
[EndTime "17:06:34 PST"]
[Termination "Kacparov won by resignation"]

1. e4 {[%clk 0:02:58.2]} 1... e6 {[%clk 0:03:01]} 2. d4 {[%clk 0:02:58.4]} 2...
d5 {[%clk 0:03:02.1]} 3. Nd2 {[%clk 0:02:59.6]} 3... a6 {[%clk 0:03:02.8]} 4.
Bd3 {[%clk 0:02:55.1]} 4... c5 {[%clk 0:03:02.5]} 5. dxc5 {[%clk 0:02:51.5]}
5... Nc6 {[%clk 0:03:01.8]} 6. Ngf3 {[%clk 0:02:52.8]} 6... Nf6 {[%clk
0:03:00.9]} 7. O-O {[%clk 0:02:51.3]} 7... Bxc5 {[%clk 0:03:00.7]} 8. a3 {[%clk
0:02:51.2]} 8... dxe4 {[%clk 0:03:01.7]} 9. Nxe4 {[%clk 0:02:52]} 9... Nxe4
{[%clk 0:03:02.6]} 10. Bxe4 {[%clk 0:02:53.9]} 10... Qxd1 {[%clk 0:03:03.7]} 11.
Rxd1 {[%clk 0:02:53.4]} 11... Bd7 {[%clk 0:03:04.6]} 12. Be3 {[%clk 0:02:54.2]}
12... Bxe3 {[%clk 0:03:05.1]} 13. fxe3 {[%clk 0:02:56.1]} 13... O-O-O {[%clk
0:03:03.7]} 14. Kf2 {[%clk 0:02:57]} 14... f6 {[%clk 0:03:04.8]} 15. c4 {[%clk
0:02:56.4]} 15... Kc7 {[%clk 0:03:04.9]} 16. b4 {[%clk 0:02:57]} 16... Ne7
{[%clk 0:03:06.1]} 17. Rd2 {[%clk 0:02:55.6]} 17... Bc6 {[%clk 0:03:06.3]} 18.
Bxc6 {[%clk 0:02:55]} 18... Rxd2+ {[%clk 0:03:06.2]} 19. Nxd2 {[%clk 0:02:55.4]}
19... Nxc6 {[%clk 0:03:07.6]} 20. Ke2 {[%clk 0:02:56.8]} 20... Rd8 {[%clk
0:03:08.2]} 21. Rc1 {[%clk 0:02:57.8]} 21... Ne5 {[%clk 0:03:09.2]} 22. Rc3
{[%clk 0:02:59.1]} 22... Kc6 {[%clk 0:03:08.3]} 23. a4 {[%clk 0:02:59.1]} 23...
b6 {[%clk 0:03:08.1]} 24. Ne4 {[%clk 0:02:59.7]} 24... Rc8 {[%clk 0:03:04.8]}
25. h3 {[%clk 0:02:59.5]} 25... Kd7 {[%clk 0:03:04.9]} 26. c5 {[%clk 0:02:59.6]}
26... bxc5 {[%clk 0:03:05.6]} 27. Nxc5+ {[%clk 0:02:59.5]} 27... Ke7 {[%clk
0:03:06]} 28. Kd2 {[%clk 0:02:58.8]} 28... Rc6 {[%clk 0:03:04.2]} 29. Kc2 {[%clk
0:02:59]} 29... h5 {[%clk 0:03:00.9]} 30. Kb3 {[%clk 0:02:54.3]} 30... g5 {[%clk
0:02:59]} 31. b5 {[%clk 0:02:55.4]} 31... axb5 {[%clk 0:02:59.6]} 32. axb5
{[%clk 0:02:57.3]} 32... Rb6 {[%clk 0:03:01]} 33. Ka4 {[%clk 0:02:55.6]} 33...
Rb8 {[%clk 0:03:01.1]} 34. Ka5 {[%clk 0:02:55.5]} 34... g4 {[%clk 0:03:00.8]}
35. b6 {[%clk 0:02:47.5]} 35... Nc6+ {[%clk 0:02:55.3]} 36. Kb5 {[%clk
0:02:47.5]} 36... Ne5 {[%clk 0:02:53.1]} 37. b7 {[%clk 0:02:40]} 37... gxh3
{[%clk 0:02:49.8]} 38. gxh3 {[%clk 0:02:40.6]} 38... Kd6 {[%clk 0:02:49.5]} 39.
Kb6 {[%clk 0:02:41.3]} 39... f5 {[%clk 0:02:43]} 40. Rc1 {[%clk 0:02:34.7]}
40... h4 {[%clk 0:02:35.3]} 41. Rd1+ {[%clk 0:02:35.3]} 41... Ke7 {[%clk
0:02:35.5]} 42. Na6 {[%clk 0:02:35.7]} 42... Nc4+ {[%clk 0:02:33.1]} 43. Kc7
{[%clk 0:02:30.5]} 43... Rxb7+ {[%clk 0:02:32.4]} 44. Kxb7 {[%clk 0:02:32.4]}
44... Nxe3 {[%clk 0:02:33.8]} 45. Rd3 {[%clk 0:02:25]} 45... Ng2 {[%clk
0:02:32.6]} 46. Nc5 {[%clk 0:02:24.2]} 46... e5 {[%clk 0:02:32.5]} 47. Kc6
{[%clk 0:02:24.7]} 47... Kf6 {[%clk 0:02:33.7]} 48. Kd6 {[%clk 0:02:23.5]} 48...
e4 {[%clk 0:02:34.6]} 49. Rd2 {[%clk 0:02:22]} 49... Nf4 {[%clk 0:02:35.2]} 50.
Nd7+ {[%clk 0:02:20.3]} 50... Kg5 {[%clk 0:02:35.8]} 51. Ke5 {[%clk 0:02:18.7]}
51... e3 {[%clk 0:02:33]} 52. Rd1 {[%clk 0:02:19.4]} 52... Nxh3 {[%clk 0:02:33]}
53. Nc5 {[%clk 0:02:16.1]} 53... Nf2 {[%clk 0:02:33.9]} 54. Rg1+ {[%clk
0:02:16.2]} 54... Kh5 {[%clk 0:02:33.6]} 55. Ne6 {[%clk 0:02:04.8]} 55... h3
{[%clk 0:02:26.1]} 56. Ng7+ {[%clk 0:02:04.6]} 56... Kh4 {[%clk 0:02:21.7]} 57.
Nxf5+ {[%clk 0:02:05.5]} 57... Kh5 {[%clk 0:02:23]} 58. Kf4 {[%clk 0:01:59.6]}
58... Nd3+ {[%clk 0:02:14.5]} 59. Kxe3 {[%clk 0:02:00.6]} 59... h2 {[%clk
0:02:14.8]} 60. Rh1 {[%clk 0:01:59.8]} 60... Kg4 {[%clk 0:02:15.3]} 61. Kxd3
{[%clk 0:01:55]} 61... Kh3 {[%clk 0:02:16.6]} 62. Ne3 {[%clk 0:01:55.7]} 62...
Kg3 {[%clk 0:02:16.6]} 63. Ke2 {[%clk 0:01:54.2]} 63... Kh3 {[%clk 0:02:17.5]}
64. Kf3 {[%clk 0:01:54.5]} 64... Kh4 {[%clk 0:02:18.7]} 65. Rxh2+ {[%clk
0:01:53.9]} 1-0

[Event "*** Titled Tuesday 3|2 Blitz (Late)"]
[Site "Chess.com"]
[Date "2017.01.03"]
[Round "1"]
[White "Dr-Bassem"]
[Black "capatl"]
[Result "1-0"]
[WhiteElo "2651"]
[BlackElo "2293"]
[TimeControl "180+2"]
[EndTime "17:06:35 PST"]
[Termination "Dr-Bassem won by resignation"]

1. e4 {[%clk 0:03:00.2]} 1... c5 {[%clk 0:02:59.4]} 2. Nf3 {[%clk 0:03:01.1]}
2... e6 {[%clk 0:03:00]} 3. d3 {[%clk 0:03:02.4]} 3... a6 {[%clk 0:02:57.5]} 4.
g3 {[%clk 0:03:02.7]} 4... b5 {[%clk 0:02:58.1]} 5. Bg2 {[%clk 0:03:04.3]} 5...
Bb7 {[%clk 0:02:59.3]} 6. O-O {[%clk 0:03:05.8]} 6... d6 {[%clk 0:02:59.8]} 7.
Re1 {[%clk 0:03:07.2]} 7... Nd7 {[%clk 0:03:00.9]} 8. c3 {[%clk 0:03:06.8]} 8...
Ngf6 {[%clk 0:02:57.7]} 9. Nbd2 {[%clk 0:03:06.6]} 9... Be7 {[%clk 0:02:35.1]}
10. d4 {[%clk 0:03:07.2]} 10... Qc7 {[%clk 0:02:31.7]} 11. e5 {[%clk 0:02:57.2]}
11... Nd5 {[%clk 0:02:20.2]} 12. Ne4 {[%clk 0:02:53]} 12... cxd4 {[%clk
0:02:12.1]} 13. exd6 {[%clk 0:02:47.1]} 13... Bxd6 {[%clk 0:02:12.8]} 14. Nxd6+
{[%clk 0:02:38.9]} 14... Qxd6 {[%clk 0:02:14.7]} 15. Nxd4 {[%clk 0:02:31]} 15...
O-O {[%clk 0:02:14.8]} 16. a4 {[%clk 0:02:31]} 16... Qb6 {[%clk 0:02:01.3]} 17.
Nf5 {[%clk 0:01:52.2]} 17... N7f6 {[%clk 0:01:48.3]} 18. Ne3 {[%clk 0:01:43.8]}
18... b4 {[%clk 0:01:41.5]} 19. c4 {[%clk 0:01:38.3]} 19... Nxe3 {[%clk
0:01:39.4]} 20. Bxe3 {[%clk 0:01:40.2]} 20... Qc7 {[%clk 0:01:39.9]} 21. Bf4
{[%clk 0:01:40.3]} 21... Qc8 {[%clk 0:01:39.1]} 22. b3 {[%clk 0:01:27.7]} 22...
Bxg2 {[%clk 0:01:37.8]} 23. Kxg2 {[%clk 0:01:29.6]} 23... Qc6+ {[%clk
0:01:38.2]} 24. Qf3 {[%clk 0:01:30.5]} 24... Qxf3+ {[%clk 0:01:35.8]} 25. Kxf3
{[%clk 0:01:32.4]} 25... Rfd8 {[%clk 0:01:34.2]} 26. Rad1 {[%clk 0:01:33]} 26...
a5 {[%clk 0:01:26.5]} 27. Rxd8+ {[%clk 0:01:22.3]} 27... Rxd8 {[%clk 0:01:26.4]}
28. Bc7 {[%clk 0:01:24]} 28... Rd3+ {[%clk 0:01:27]} 29. Re3 {[%clk 0:01:24.4]}
29... Rxe3+ {[%clk 0:00:54.9]} 30. Kxe3 {[%clk 0:01:26.3]} 30... Nd7 {[%clk
0:00:53.2]} 31. Bxa5 {[%clk 0:01:25.7]} 31... Nc5 {[%clk 0:00:54.2]} 32. Bxb4
{[%clk 0:01:26.2]} 32... Nxb3 {[%clk 0:00:55.2]} 33. a5 {[%clk 0:01:27.5]} 1-0

[Event "*** Titled Tuesday 3|2 Blitz (Late)"]
[Site "Chess.com"]
[Date "2017.01.03"]
[Round "1"]
[White "SidArun"]
[Black "Fh2411"]
[Result "0-1"]
[WhiteElo "2051"]
[BlackElo "2375"]
[TimeControl "180+2"]
[EndTime "17:06:48 PST"]
[Termination "Fh2411 won by resignation"]

1. e4 {[%clk 0:03:02]} 1... e5 {[%clk 0:03:00]} 2. f4 {[%clk 0:03:01.7]} 2... d5
{[%clk 0:02:58.8]} 3. exd5 {[%clk 0:03:01.9]} 3... exf4 {[%clk 0:02:56]} 4. Nf3
{[%clk 0:03:01.7]} 4... Nf6 {[%clk 0:02:55.3]} 5. c4 {[%clk 0:03:02]} 5... c6
{[%clk 0:02:43.9]} 6. d4 {[%clk 0:03:02.3]} 6... cxd5 {[%clk 0:02:42.5]} 7. Bxf4
{[%clk 0:03:02.2]} 7... Nc6 {[%clk 0:02:38.9]} 8. Nc3 {[%clk 0:02:59.8]} 8...
Be7 {[%clk 0:02:35.9]} 9. c5 {[%clk 0:02:59.1]} 9... O-O {[%clk 0:02:32.8]} 10.
Be2 {[%clk 0:03:00.2]} 10... Bf5 {[%clk 0:02:32.2]} 11. O-O {[%clk 0:03:00.3]}
11... Ne4 {[%clk 0:02:25.8]} 12. Ne5 {[%clk 0:02:54.7]} 12... Bf6 {[%clk
0:02:16.2]} 13. Nxc6 {[%clk 0:02:52.5]} 13... bxc6 {[%clk 0:02:18.1]} 14. Be5
{[%clk 0:02:33.3]} 14... Bg6 {[%clk 0:01:54.1]} 15. Bxf6 {[%clk 0:02:26.4]}
15... Nxf6 {[%clk 0:01:56]} 16. Bd3 {[%clk 0:02:27.5]} 16... Re8 {[%clk
0:01:49.9]} 17. Bxg6 {[%clk 0:02:24.4]} 17... hxg6 {[%clk 0:01:51.8]} 18. Qd3
{[%clk 0:02:24.3]} 18... Rb8 {[%clk 0:01:52.4]} 19. b3 {[%clk 0:02:23.9]} 19...
Qd7 {[%clk 0:01:53.2]} 20. Rae1 {[%clk 0:02:21.3]} 20... Rb4 {[%clk 0:01:53.3]}
21. Rxe8+ {[%clk 0:02:11.6]} 21... Qxe8 {[%clk 0:01:55.2]} 22. Ne2 {[%clk
0:01:43.4]} 22... Ne4 {[%clk 0:01:47.6]} 23. Rf4 {[%clk 0:01:39.7]} 23... f5
{[%clk 0:01:41.1]} 24. g4 {[%clk 0:01:37.5]} 24... Qe6 {[%clk 0:01:32.4]} 25.
gxf5 {[%clk 0:01:31.9]} 25... gxf5 {[%clk 0:01:34.3]} 26. Qf3 {[%clk 0:01:32.2]}
26... g6 {[%clk 0:01:32.1]} 27. h4 {[%clk 0:01:29.9]} 27... Rb7 {[%clk
0:01:32.6]} 28. h5 {[%clk 0:01:30.6]} 28... Rg7 {[%clk 0:01:29.8]} 29. h6 {[%clk
0:01:20.1]} 29... Rh7 {[%clk 0:01:29.4]} 30. Qh3 {[%clk 0:01:15.9]} 30... Ng5
{[%clk 0:01:27]} 31. Qg2 {[%clk 0:01:16.8]} 31... Nf7 {[%clk 0:01:18.1]} 32. Ng3
{[%clk 0:01:15.3]} 32... Nxh6 {[%clk 0:01:18.6]} 33. Nh5 {[%clk 0:01:08.7]}
33... Ng4 {[%clk 0:01:05.9]} 34. Ng3 {[%clk 0:00:54.3]} 34... Qe3+ {[%clk
0:01:04.9]} 0-1